bitfinex/quotes_ETHUSD_20240828
["timestamp","ask_amount","ask_price","bid_price","bid_amount"]
[1724883554500,3.07132881,2526.7,2526.1,3.95854]
[1724883554993,0.67662881,2526.7,2526.4,3.95816]
[1724883555299,3.9567,2527.4,2525.8,3.95905]
[1724883555300,3.95711,2527.1,2526.5,7.91586]
[1724883555460,3.95711,2527.1,2526.5,7.91583]
[1724883555667,3.95711,2527.1,2526.5,3.95789]
[1724883555985,6.35143,2527.4,2526.7,3.95758]
[1724883556196,3.95642,2527.6,2527.1,3.95702]
[1724883556490,6.90496908,2527.9,2527.3,3.95676]
[1724883556491,3.9561,2527.8,2527.3,3.95676]
[1724883556689,4.92404926,2528.2,2527.6,3.95623]
[1724883556690,6.76396018,2528.2,2527.6,3.95623]
[1724883556899,3.95571,2528.0,2527.4,3.95649]
[1724883557098,3.95604,2527.8,2527.2,3.95694]
[1724883557406,3.95587,2527.9,2527.4,3.95658]
[1724883557564,3.95587,2527.9,2527.2,7.91365]
[1724883557897,8.66967651,2528.0,2527.4,3.95661]
[1724883558084,0.75813651,2528.0,2527.6,3.95622]
[1724883558298,3.9562,2527.7,2527.2,3.9568]
[1724883558597,3.95617,2527.7,2527.1,3.95697]
[1724883558802,0.791231,2527.7,2527.2,3.9569]
[1724883559311,3.95587,2527.9,2527.4,3.95661]
[1724883559603,4.71383651,2528.0,2527.4,3.95661]
[1724883559810,3.95647,2527.6,2526.8,2.3542]
[1724883560121,3.95578,2528.0,2527.4,3.95655]
[1724883560259,3.0,2528.1,2526.8,2.3542]
[1724883560260,3.0,2528.1,2527.6,3.95632]
[1724883560466,1.38604291,2528.0,2527.6,3.95622]
[1724883560713,3.95578,2528.0,2527.4,3.95652]
[1724883560916,3.95578,2528.0,2527.7,0.05422583]
[1724883561069,3.95541,2528.2,2527.4,3.95652]
[1724883561259,3.95541,2528.2,2527.8,0.05403097]
[1724883561463,3.95541,2528.2,2527.4,7.91304]
[1724883561665,3.95541,2528.2,2527.9,0.05383613]
[1724883561897,3.95569,2528.0,2527.4,3.9565]
[1724883562077,3.95569,2528.0,2527.4,4.35215]
[1724883562276,3.95569,2528.0,2527.2,3.95685]
[1724883562277,3.95609,2527.8,2527.2,3.95685]
[1724883562479,4.51026908,2528.2,2527.2,3.95685]
[1724883562680,6.35053,2528.0,2527.0,2.3542]
[1724883562902,6.35053,2528.0,2527.1,0.23542]
[1724883562903,2.3947,2528.0,2527.1,0.23542]
[1724883563102,2.3947,2528.0,2527.0,3.95716]
[1724883563103,3.9564,2527.6,2527.0,7.91433]
[1724883563324,3.9564,2527.6,2526.9,3.95733]
[1724883563614,3.9564,2527.6,2527.0,0.06176699]
[1724883563615,3.95657,2527.5,2527.0,0.06176699]
[1724883564116,3.95668,2527.4,2527.0,0.06176699]
[1724883564330,3.95691,2527.3,2527.0,0.06176699]
[1724883564470,3.95654,2527.5,2526.8,3.95743]
[1724883564689,3.95626,2527.7,2527.1,0.06155036]
[1724883564984,3.95626,2527.7,2527.2,4.01819374]
[1724883565184,3.95588,2527.9,2527.4,3.9566]
[1724883565422,2.3947,2528.0,2527.5,0.060684]
[1724883565629,4.51026908,2528.5,2527.7,3.95601]
[1724883565630,3.95526,2528.3,2527.7,3.95601]
[1724883565930,3.95526,2528.3,2527.5,0.13980343]
[1724883565931,3.95555,2528.1,2527.8,0.06753872]
[1724883566091,3.95571,2528.0,2527.8,0.06753872]
[1724883566287,3.95572,2528.0,2527.5,3.95638]
[1724883566597,7.91121,2528.1,2527.5,3.95639]
[1724883566806,3.95571,2528.0,2527.6,0.06046746]
[1724883567320,3.95555,2528.1,2527.6,0.06046746]
[1724883567624,2.4422,2528.4,2527.6,0.06046746]
[1724883567625,3.0,2528.4,2527.9,3.95583]
[1724883567795,3.95499,2528.5,2528.0,0.06659662]
[1724883567796,7.91,2528.5,2528.0,0.06659662]
[1724883568004,3.95479,2528.6,2528.1,3.95551]
[1724883568527,7.90938,2528.7,2528.1,3.95544]
[1724883569021,0.41375091,2529.0,2528.3,3.9552]
[1724883569022,3.95438,2528.9,2528.3,3.9552]
[1724883569185,3.95446,2528.8,2528.3,3.9552]
[1724883569385,3.95446,2528.8,2528.1,4.62829084]
[1724883569386,0.41375091,2529.0,2528.1,0.67284084]
[1724883569595,3.95407,2529.1,2528.5,3.95479]
[1724883569790,3.95423,2529.0,2528.3,3.95509]
[1724883570032,6.88146908,2529.4,2528.7,3.9545]
[1724883570033,2.3712,2529.4,2528.7,3.9545]
[1724883570196,2.3712,2529.4,2528.8,3.95433]
[1724883570197,6.32482,2529.4,2528.8,3.95433]
[1724883570398,3.95366,2529.3,2528.7,3.9545]
[1724883570593,3.95419,2529.0,2528.5,2.3542]
[1724883570794,3.95419,2529.0,2528.4,3.95498]
[1724883571030,3.95419,2529.0,2528.3,0.395509]
[1724883571031,3.95424,2529.0,2528.3,0.395509]
[1724883571234,3.95424,2529.0,2528.4,3.95502]
[1724883571394,3.95429,2528.9,2528.4,3.95502]
[1724883572025,3.95418,2529.0,2528.4,7.9099]
[1724883572237,7.90809,2529.1,2528.5,3.95482]
[1724883572400,3.95398,2529.1,2528.4,3.95493]
[1724883572827,3.95398,2529.1,2528.4,4.7855049]
[1724883573139,3.95398,2529.1,2528.6,3.95465]
[1724883573299,3.95375,2529.3,2528.6,3.95465]
[1724883573936,3.95407,2529.1,2528.6,3.95465]
[1724883574143,3.95459,2528.8,2528.2,3.95527]
[1724883574299,4.51026908,2529.1,2528.0,4.35785266]
[1724883574300,3.95473,2528.7,2528.0,4.35785266]
[1724883574507,3.95473,2528.7,2528.1,0.43578527]
[1724883574705,9.72729691,2529.0,2528.0,4.35785266]
[1724883574928,9.72729691,2529.0,2527.8,6.30853]
[1724883574929,3.95491,2528.5,2527.8,6.30853]
[1724883575134,3.95491,2528.5,2527.9,3.95584]
[1724883575440,3.95469,2528.7,2528.2,3.95538]
[1724883575604,7.9094,2528.7,2528.1,3.95552]
[1724883575804,4.350159,2528.7,2528.0,3.9556]
[1724883576239,3.95491,2528.5,2528.0,3.9556]
[1724883576428,3.95491,2528.5,2528.0,7.91121]
[1724883576629,4.350159,2528.7,2528.0,4.981981]
[1724883576832,3.95489,2528.6,2528.0,4.981981]
[1724883577028,5.77312691,2529.0,2528.2,3.95524]
[1724883577029,7.90882,2528.9,2528.2,3.95524]
[1724883577213,6.95449,2528.8,2528.2,3.95524]
[1724883577402,3.95439,2528.9,2528.2,3.95524]
[1724883577755,3.95415,2529.0,2528.4,3.95498]
[1724883577905,4.744971,2529.0,2528.4,3.95498]
[1724883578107,7.90868,2528.9,2528.4,3.95498]
[1724883578305,3.9543,2528.9,2528.4,3.95498]
[1724883579205,2.4157,2528.8,2527.6,2.4786]
[1724883579449,3.95541,2528.2,2527.7,4.03037683]
[1724883579745,4.51026908,2528.5,2527.7,4.03037683]
[1724883579746,3.95563,2528.1,2527.7,0.07425683]
[1724883580106,3.95563,2528.1,2527.6,2.4786]
[1724883580446,3.95514,2528.4,2527.9,3.95583]
[1724883580627,3.95514,2528.4,2527.6,2.4786]
[1724883580628,3.95533,2528.3,2527.7,7.91213]
[1724883580801,3.95539,2528.2,2527.7,3.95606]
[1724883581205,3.956,2527.8,2526.7,3.95771]
[1724883581438,3.95619,2527.7,2527.1,3.95699]
[1724883581619,3.95619,2527.7,2527.2,0.06544446]
[1724883583129,3.95619,2527.7,2527.2,4.02227446]
[1724883583308,3.95619,2527.7,2527.2,0.06544446]
[1724883583816,3.95649,2527.5,2527.2,0.06544446]
[1724883584402,7.91249,2527.7,2527.2,0.06544446]
[1724883584608,3.95619,2527.7,2527.2,0.06544446]
[1724883585450,7.91246,2527.7,2527.2,0.06544446]
[1724883585613,3.95638,2527.6,2527.2,0.06544446]
[1724883586154,3.95679,2527.3,2527.2,0.06544446]
[1724883586444,3.95651,2527.5,2526.5,6.28264]
[1724883586445,3.95703,2527.2,2526.5,6.28264]
[1724883586746,3.95731,2527.0,2526.5,6.28264]
[1724883586959,3.95757,2526.8,2526.1,6.36065]
[1724883587154,3.95781,2526.7,2526.2,0.636065]
[1724883587328,3.95757,2526.8,2526.2,0.636065]
[1724883587529,3.95757,2526.8,2526.2,4.594435]
[1724883587836,3.95757,2526.8,2526.3,3.95834]
[1724883588039,3.95757,2526.8,2526.3,5.0538455]
[1724883588716,6.95704,2527.2,2526.6,3.95788]
[1724883589046,3.95704,2527.2,2526.6,3.95788]
[1724883589248,3.95704,2527.2,2526.7,3.95773]
[1724883589414,3.95704,2527.2,2526.5,3.95793]
[1724883589743,3.95704,2527.2,2526.6,3.95778]
[1724883589942,6.95687,2527.3,2526.7,3.95758]
[1724883590322,3.95694,2527.2,2526.7,3.95758]
[1724883591745,3.95694,2527.2,2526.7,7.91521]
[1724883591947,3.0,2527.3,2526.7,7.91521]
[1724883592147,3.0,2527.3,2526.9,3.9574]
[1724883592351,3.0,2527.5,2527.0,3.95724]
[1724883592561,3.0,2527.5,2526.9,3.9574]
[1724883592767,6.95651,2527.5,2526.9,3.95733]
[1724883593060,6.95651,2527.5,2526.9,3.95732]
[1724883593463,6.95651,2527.5,2527.0,0.0606958]
[1724883593970,6.95651,2527.5,2527.0,4.0179158]
[1724883594540,6.95651,2527.5,2527.0,0.0606958]
[1724883594762,8.72722891,2527.5,2527.0,0.0606958]
[1724883594969,6.95651,2527.5,2527.0,0.0606958]
[1724883595673,3.95665,2527.4,2527.0,0.0606958]
[1724883596054,3.0,2527.5,2527.0,4.0179158]
[1724883596254,6.95651,2527.5,2527.0,4.0179158]
[1724883596788,6.95651,2527.5,2527.1,3.95709]
[1724883596789,3.0,2527.5,2527.1,3.95709]
[1724883597087,3.0,2527.5,2527.2,0.06019411]
[1724883597690,7.35,2527.8,2527.4,3.95653]
[1724883597891,3.95585,2527.9,2527.4,3.95653]
[1724883598074,6.35333,2528.3,2527.6,3.95631]
[1724883598282,3.95541,2528.2,2527.6,7.9125]
[1724883598489,6.35333,2528.3,2527.6,7.9125]
[1724883598490,3.95555,2528.1,2527.6,3.95619]
[1724883599298,3.95555,2528.1,2527.5,3.95646]
[1724883599482,4.51026908,2528.2,2527.6,3.95631]
[1724883599659,3.95571,2528.0,2527.5,3.95647]
[1724883600266,3.95554,2528.1,2527.6,3.95632]
[1724883600585,4.51026908,2528.2,2527.2,0.40172841]
[1724883600796,3.95685,2527.3,2526.7,3.95758]
[1724883600959,3.95685,2527.3,2526.8,3.95747]
[1724883601162,3.95695,2527.2,2526.7,3.95758]
[1724883601374,3.95685,2527.3,2526.6,3.95784]
[1724883601574,3.95711,2527.1,2526.5,8.543928]
[1724883601773,3.95711,2527.1,2526.5,4.585928]
[1724883602218,7.91382,2527.3,2526.5,4.585928]
[1724883602412,3.0,2527.2,2526.5,4.585928]
[1724883602778,3.0,2527.2,2526.7,3.95769]
[1724883603399,3.95714,2527.1,2526.6,3.95781]
[1724883603986,3.0,2527.2,2526.7,3.95772]
[1724883604197,4.748262,2527.3,2526.8,3.95755]
[1724883604198,3.95688,2527.3,2526.8,3.95755]
[1724883604403,3.95695,2527.2,2526.7,3.95772]
[1724883604808,6.95657,2527.5,2526.7,0.86065108]
[1724883605018,3.0,2527.4,2526.8,3.95743]
[1724883605215,7.91367,2527.3,2526.8,3.95743]
[1724883605380,7.91368,2527.3,2526.8,3.95743]
[1724883605578,3.9568,2527.3,2526.8,3.95743]
[1724883606221,3.0,2527.4,2526.9,3.95741]
[1724883607111,3.0,2527.4,2526.8,4.748954]
[1724883607435,7.91369,2527.3,2526.8,3.95743]
[1724883607875,2.4244,2527.3,2526.6,3.95778]
[1724883608077,2.4244,2527.3,2526.1,2.398]
[1724883608078,3.95739,2527.0,2526.1,2.398]
[1724883608306,3.95739,2527.0,2526.5,3.95803]
[1724883608616,3.95705,2527.2,2526.2,0.3018188]
[1724883608773,3.95681,2527.3,2526.7,3.95759]
[1724883609197,3.0,2527.2,2526.8,0.06071845]
[1724883609478,15.26283,2527.6,2527.1,3.95708]
[1724883609708,7.35,2527.6,2527.2,3.95685]
[1724883610035,3.95647,2527.5,2527.2,0.06733337]
[1724883610241,7.35,2527.6,2527.2,0.06733337]
[1724883610399,3.95663,2527.4,2527.2,0.06733337]
[1724883610581,3.9568,2527.3,2526.7,3.9576]
[1724883610785,7.91369,2527.3,2526.7,4.749157]
[1724883610987,3.95697,2527.2,2526.8,0.06071845]
[1724883611182,3.95737,2527.0,2526.8,0.06071845]
[1724883611418,3.95737,2527.0,2525.0,0.82298276]
[1724883611419,4.51026908,2527.2,2526.0,2.2597]
[1724883611728,3.95856,2526.2,2525.4,2.4198]
[1724883612033,3.95856,2526.2,2525.5,3.95952]
[1724883612034,3.95878,2526.1,2525.5,3.95952]
[1724883612187,3.95856,2526.2,2525.6,3.95945]
[1724883612387,3.95856,2526.2,2525.5,3.95952]
[1724883612615,3.95856,2526.2,2525.5,4.6612485]
[1724883612816,3.95856,2526.2,2525.5,4.6612285]
[1724883613217,3.95828,2526.4,2525.8,3.95913]
[1724883613466,3.95828,2526.4,2525.8,0.791842]
[1724883613622,7.91659,2526.4,2525.8,0.791842]
[1724883613928,6.95794,2526.6,2525.8,0.791842]
[1724883614131,6.95794,2526.6,2526.0,3.95873]
[1724883614335,10.91594,2526.6,2525.9,3.95884]
[1724883614491,6.95794,2526.6,2525.9,4.750645]
[1724883614699,3.95785,2526.7,2526.1,3.95866]
[1724883615035,3.95785,2526.7,2526.2,0.4037828]
[1724883615241,3.95792,2526.6,2525.9,10.37742]
[1724883615405,3.95792,2526.6,2525.9,7.456282]
[1724883615605,3.95809,2526.5,2525.9,7.456282]
[1724883616005,3.95792,2526.6,2525.9,11.415162]
[1724883616225,3.95792,2526.6,2525.9,7.456282]
[1724883616600,3.95805,2526.5,2525.9,7.456282]
[1724883616796,3.95805,2526.5,2526.0,0.7456282]
[1724883616996,3.95792,2526.6,2526.0,4.7044382]
[1724883617405,3.95764,2526.8,2526.2,3.95849]
[1724883617610,3.95788,2526.6,2526.2,0.67033416]
[1724883618931,3.95788,2526.6,2526.0,8.6631082]
[1724883619146,7.91586,2526.6,2526.0,4.7043582]
[1724883619436,3.95812,2526.5,2526.0,4.7043582]
[1724883619608,3.95788,2526.6,2526.0,4.7043482]
[1724883619827,3.95788,2526.6,2526.0,8.6630782]
[1724883620050,3.95761,2526.8,2526.1,1.11227782]
[1724883620428,3.95761,2526.8,2526.1,5.07090782]
[1724883620629,3.95785,2526.7,2526.1,5.07090782]
[1724883620990,3.95761,2526.8,2526.2,3.9585]
[1724883621118,3.95761,2526.8,2526.3,3.95835]
[1724883621541,3.95761,2526.8,2526.2,3.9585]
[1724883621740,3.95761,2526.8,2526.2,3.95843]
[1724883621941,6.33614,2527.0,2526.2,0.50707078]
[1724883621942,2.3788,2527.0,2526.2,0.50707078]
[1724883622252,6.34973,2527.3,2526.7,7.9152]
[1724883622449,3.95683,2527.3,2526.7,3.95757]
[1724883623016,3.95696,2527.2,2526.7,3.95757]
[1724883623212,3.95696,2527.2,2526.2,3.95837]
[1724883623213,3.95712,2527.1,2526.4,3.95819]
[1724883623412,3.9575,2526.9,2526.3,3.95824]
[1724883623617,3.95781,2526.7,2526.4,0.05659755]
[1724883624158,7.91564,2526.7,2526.1,3.95858]
[1724883624456,3.95781,2526.7,2526.2,3.95847]
[1724883624761,7.91564,2526.7,2526.3,0.06310292]
[1724883624960,3.95781,2526.7,2526.3,0.06310292]
[1724883625169,3.95781,2526.7,2526.1,3.95865]
[1724883625170,7.91568,2526.7,2526.1,7.91723]
[1724883625334,3.95781,2526.7,2526.4,0.06288617]
[1724883625540,7.91562,2526.7,2526.1,7.91723]
[1724883625734,3.95781,2526.7,2526.5,0.06266944]
[1724883625939,8.46776908,2526.9,2526.3,3.95821]
[1724883625940,3.9575,2526.9,2526.3,3.95821]
[1724883626126,7.91503,2526.9,2526.6,0.06245272]
[1724883626331,7.915,2526.9,2526.3,3.95821]
[1724883626665,3.9575,2526.9,2526.4,3.95814]
[1724883626871,6.9572,2527.1,2526.5,4.02067944]
[1724883627031,6.95718,2527.1,2526.5,4.02060944]
[1724883627229,3.0,2527.1,2526.5,5.14313508]
[1724883627430,3.9571,2527.1,2526.7,3.95772]
[1724883627657,3.9571,2527.1,2526.8,0.06182006]
[1724883627853,3.9571,2527.1,2526.7,3.95772]
[1724883628181,14.14242157,2527.6,2527.1,3.95701]
[1724883628358,2.4223603,2527.7,2526.9,2.4547]
[1724883628554,3.9561,2527.8,2527.3,3.95669]
[1724883628725,7.91221,2527.8,2527.3,3.95669]
[1724883628929,7.91221,2527.8,2527.4,0.06808536]
[1724883628930,3.95619,2527.7,2527.4,0.06808536]
[1724883629154,3.95632,2527.6,2527.4,0.06808536]
[1724883629353,3.95632,2527.6,2527.1,3.95699]
[1724883629354,8.78528603,2527.8,2527.1,3.95699]
[1724883629559,3.95609,2527.8,2527.5,0.05995516]
[1724883629740,2.3525,2527.9,2527.3,3.95665]
[1724883629955,6.3781403,2528.0,2527.3,3.95665]
[1724883629956,2.4223603,2528.0,2527.6,0.05961415]
[1724883630174,3.95545,2528.2,2527.5,3.95642]
[1724883630330,4.94601932,2528.2,2527.7,0.05937896]
[1724883630529,3.95573,2528.0,2527.5,3.95639]
[1724883630929,3.95573,2528.0,2527.6,0.05959549]
[1724883631376,7.91151,2528.0,2527.6,0.05959549]
[1724883631727,7.91151,2528.0,2527.4,2.4547]
[1724883631957,3.95573,2528.0,2527.7,0.05922341]
[1724883632163,3.95573,2528.0,2527.5,3.95646]
[1724883632369,3.95573,2528.0,2527.8,0.0590069]
[1724883632572,3.95573,2528.0,2527.5,3.95646]
[1724883632838,3.95573,2528.0,2527.5,4.43292013]
[1724883633176,3.95573,2528.0,2527.6,0.05943994]
[1724883633890,3.0,2528.3,2527.7,3.95603]
[1724883634054,3.95541,2528.2,2527.7,3.95603]
[1724883634382,6.95525,2528.3,2527.8,0.0590069]
[1724883635346,3.0,2528.3,2527.9,3.95576]
[1724883635546,7.90969,2528.6,2528.0,3.95569]
[1724883635782,3.0,2528.5,2528.0,4.00840653]
[1724883636042,13.61431,2528.7,2528.1,3.9555]
[1724883636198,2.3097,2528.7,2528.2,3.9553]
[1724883636487,2.3097,2528.7,2528.2,0.05814102]
[1724883636488,3.95479,2528.6,2528.2,0.05814102]
[1724883636647,3.95479,2528.6,2528.0,3.95569]
[1724883636648,5.07553746,2528.6,2528.0,3.95569]
[1724883636848,5.07553746,2528.6,2528.1,0.05835747]
[1724883637153,3.95496,2528.5,2528.1,0.05835747]
[1724883637550,3.95524,2528.3,2528.1,0.05835747]
[1724883637746,3.95496,2528.5,2527.9,3.95573]
[1724883637950,3.95496,2528.5,2528.2,0.05773054]
[1724883638149,3.95496,2528.5,2527.8,3.95592]
[1724883638451,3.95531,2528.3,2527.8,3.95592]
[1724883639552,7.91003,2528.5,2527.8,3.95592]
[1724883639763,6.9544,2528.9,2527.9,0.395592]
[1724883639969,3.9544,2528.9,2528.2,2.3666]
[1724883640277,3.9544,2528.9,2528.4,3.95497]
[1724883640477,6.26387,2529.0,2528.4,3.95497]
[1724883640916,7.33498174,2529.3,2528.6,3.95475]
[1724883641069,7.33498174,2529.3,2528.3,0.23666]
[1724883641070,11.70176344,2529.5,2528.9,3.95425]
[1724883641268,11.70176344,2529.5,2529.0,3.95411]
[1724883641269,3.95344,2529.5,2529.0,3.95411]
[1724883641907,6.04819417,2529.5,2528.8,3.95433]
[1724883642129,3.95381,2529.3,2528.6,3.95466]
[1724883642264,3.95414,2529.0,2528.4,6.24087]
[1724883642604,6.825511,2529.2,2528.6,3.95473]
[1724883642762,3.95397,2529.1,2528.6,3.95473]
[1724883642967,6.825511,2529.2,2528.6,3.95473]
[1724883643201,3.95383,2529.2,2528.6,7.90946]
[1724883643374,3.95383,2529.2,2528.4,3.95498]
[1724883643577,3.95413,2529.0,2528.5,3.95489]
[1724883643775,3.95413,2529.0,2528.4,3.95498]
[1724883644088,7.90837,2529.0,2528.4,3.95498]
[1724883644294,3.95413,2529.0,2528.4,7.90995]
[1724883644489,3.95413,2529.0,2528.5,0.790995]
[1724883644691,3.95413,2529.0,2528.4,3.95497]
[1724883645385,7.90834,2529.0,2528.4,3.95497]
[1724883645588,3.95413,2529.0,2528.4,3.95497]
[1724883645789,2.415,2529.0,2528.1,2.4291]
[1724883645991,3.95446,2528.8,2528.2,3.95527]
[1724883646873,3.95469,2528.7,2528.2,3.95527]
[1724883647420,3.95476,2528.6,2528.0,3.95559]
[1724883647915,3.95493,2528.5,2528.0,3.95559]
[1724883648075,3.95493,2528.5,2528.0,5.0292102]
[1724883648271,3.95476,2528.6,2528.0,8.9848002]
[1724883648507,3.95476,2528.6,2528.0,5.0292102]
[1724883649075,7.90902,2528.8,2528.2,3.95525]
[1724883649306,2.415,2529.0,2528.0,1.0736202]
[1724883649307,3.95477,2528.6,2528.0,3.95559]
[1724883649676,3.95488,2528.6,2528.0,3.95559]
[1724883649879,3.9546,2528.7,2528.0,4.989653]
[1724883649880,3.95495,2528.5,2528.0,4.989653]
[1724883650077,3.95518,2528.4,2527.8,6.38504]
[1724883650322,3.95537,2528.3,2527.8,6.38504]
[1724883650522,3.95539,2528.2,2527.8,2.4291]
[1724883650813,7.91086,2528.2,2527.8,3.463251]
[1724883651076,7.91087,2528.2,2527.8,3.463251]
[1724883651421,3.95539,2528.2,2527.8,3.463251]
[1724883651627,3.95548,2528.2,2527.5,3.95645]
[1724883651924,3.95555,2528.1,2527.5,3.95639]
[1724883652227,3.95555,2528.1,2527.6,4.6532864]
[1724883652396,3.95555,2528.1,2527.6,4.0212874]
[1724883652596,3.95526,2528.3,2527.8,3.956]
[1724883653007,3.95563,2528.1,2527.6,7.91244]
[1724883653225,3.95563,2528.1,2527.6,3.9562]
[1724883653522,3.95563,2528.1,2527.7,4.03012293]
[1724883654088,3.95563,2528.1,2527.7,0.07399293]
[1724883654289,3.95539,2528.2,2527.6,7.91236]
[1724883654510,3.95539,2528.2,2527.7,0.06474381]
[1724883654920,3.95539,2528.2,2527.7,4.02086381]
[1724883655094,3.95533,2528.3,2527.7,0.06474381]
[1724883655287,3.95533,2528.3,2527.7,0.49047119]
[1724883655489,3.9554,2528.2,2527.7,4.44661119]
[1724883656117,3.95555,2528.1,2527.7,0.49047119]
[1724883656332,3.95555,2528.1,2527.7,0.06474381]
[1724883656535,7.9107,2528.3,2527.7,4.02079381]
[1724883656695,3.9554,2528.2,2527.7,4.02079381]
[1724883656892,3.9554,2528.2,2527.7,4.84212619]
[1724883657090,6.95496,2528.5,2527.8,2.3938]
[1724883657314,6.37731,2528.7,2527.8,2.3938]
[1724883657315,3.95471,2528.7,2528.2,3.9553]
[1724883657737,3.95471,2528.7,2528.1,3.95544]
[1724883658833,3.95471,2528.7,2527.8,2.3938]
[1724883658834,3.95524,2528.3,2527.8,6.34972]
[1724883659139,3.95515,2528.4,2527.9,3.95585]
[1724883659498,3.95485,2528.6,2528.0,3.95567]
[1724883659932,3.95501,2528.5,2528.0,3.95567]
[1724883660443,3.95508,2528.4,2527.8,6.3498]
[1724883660623,3.95546,2528.2,2527.6,3.9563]
[1724883660794,3.95557,2528.1,2527.6,3.9563]
[1724883660993,3.95557,2528.1,2527.7,0.05755005]
[1724883661603,3.95557,2528.1,2527.7,4.01370005]
[1724883662794,3.95541,2528.2,2527.7,4.01370005]
[1724883663203,7.91063,2528.3,2527.8,3.956]
[1724883663396,7.91061,2528.3,2527.8,3.956]
[1724883663594,7.91063,2528.3,2527.8,3.956]
[1724883663840,1.028283,2528.3,2527.8,0.06487798]
[1724883664036,7.9117,2527.9,2527.8,0.06487798]
[1724883664198,7.91311,2527.5,2527.1,2.3041]
[1724883664395,6.32795,2528.0,2527.2,3.95692]
[1724883664396,3.95627,2527.7,2527.2,3.95692]
[1724883664598,3.95678,2527.4,2526.8,3.95749]
[1724883664826,3.95681,2527.3,2526.8,3.95749]
[1724883665035,3.95681,2527.3,2526.7,2.3041]
[1724883665036,3.95719,2527.1,2526.7,2.3041]
[1724883665207,7.91346,2527.4,2526.7,2.930286]
[1724883665622,3.95683,2527.3,2526.8,3.95756]
[1724883666205,3.95683,2527.3,2526.7,2.930286]
[1724883666206,3.95641,2527.6,2527.1,3.95699]
[1724883666517,6.36157,2527.8,2526.7,2.930286]
[1724883666518,6.91352928,2527.8,2526.7,6.888006]
[1724883666721,3.95665,2527.4,2526.8,3.95743]
[1724883666904,3.95652,2527.5,2527.0,3.95725]
[1724883667538,3.95641,2527.6,2526.9,4.583433]
[1724883667752,3.95641,2527.6,2526.7,2.3041]
[1724883667753,3.95577,2528.0,2527.3,6.37417]
[1724883667907,3.95589,2527.9,2527.4,4.594017]
[1724883668111,3.95577,2528.0,2527.4,4.594017]
[1724883668342,3.95585,2527.9,2527.5,0.06560877]
[1724883668540,3.95611,2527.8,2527.5,0.06560877]
[1724883668700,3.95632,2527.6,2527.5,0.06560877]
[1724883668902,3.95647,2527.5,2527.1,2.4174]
[1724883669135,3.95647,2527.5,2526.9,3.95731]
[1724883669309,3.95633,2527.6,2527.1,3.95708]
[1724883669514,3.95658,2527.5,2526.9,3.95726]
[1724883669856,3.95665,2527.4,2526.9,4.990488]
[1724883670236,7.91341,2527.4,2526.9,4.990488]
[1724883670444,3.95665,2527.4,2526.9,4.990488]
[1724883670825,3.95641,2527.6,2527.0,0.7407888]
[1724883671033,7.91282,2527.6,2527.1,3.95701]
[1724883671536,3.95647,2527.5,2527.1,3.95701]
[1724883671768,3.95669,2527.4,2527.0,0.7407888]
[1724883672083,3.95682,2527.3,2526.7,3.95762]
[1724883672442,3.95695,2527.2,2526.7,3.95762]
[1724883672757,3.95712,2527.1,2526.6,2.4174]
[1724883672927,3.95712,2527.1,2526.6,6.37518]
[1724883673128,7.91374,2527.3,2526.7,3.95765]
[1724883673371,3.95713,2527.1,2526.6,2.4174]
[1724883673827,3.95713,2527.1,2526.6,6.37525]
[1724883674024,3.95713,2527.1,2526.6,7.408564]
[1724883675127,3.95713,2527.1,2525.8,8.87117783]
[1724883675128,3.95754,2526.9,2526.3,6.24255]
[1724883675941,7.91505,2526.9,2526.3,6.24255]
[1724883676264,3.9575,2526.9,2526.3,6.24255]
[1724883676465,3.9575,2526.9,2526.4,3.95817]
[1724883676676,3.9575,2526.9,2526.4,4.978242]
[1724883676975,3.0,2527.4,2526.9,3.95741]
[1724883677133,3.0,2527.4,2527.0,3.95722]
[1724883677651,3.0,2527.4,2526.9,3.95741]
[1724883677854,6.95671,2527.4,2526.9,3.95741]
[1724883678050,3.95687,2527.3,2526.8,2.2628]
[1724883678428,7.91377,2527.3,2526.8,2.2628]
[1724883678771,3.95687,2527.3,2526.7,3.95762]
[1724883678976,3.95695,2527.2,2526.7,3.95762]
[1724883679270,7.91375,2527.3,2526.7,4.981506]
[1724883679475,3.95687,2527.3,2526.7,8.939156]
[1724883679676,7.91375,2527.3,2526.7,4.981506]
[1724883679876,3.95687,2527.3,2526.8,3.95757]
[1724883680060,3.95655,2527.5,2526.9,4.8513176]
[1724883680262,3.95625,2527.7,2527.0,6.32813]
[1724883680629,3.95641,2527.6,2527.0,10.28529]
[1724883680860,3.95641,2527.6,2527.0,11.313829]
[1724883681176,3.95648,2527.5,2527.0,7.356659]
[1724883681729,3.95648,2527.5,2527.0,11.313829]
[1724883681936,3.95648,2527.5,2527.0,7.356659]
[1724883682372,3.95625,2527.7,2527.0,7.356659]
[1724883682373,3.95627,2527.7,2527.0,7.356659]
[1724883682680,3.95626,2527.7,2527.2,3.95693]
[1724883682881,7.91254,2527.7,2527.2,3.95693]
[1724883683049,3.95626,2527.7,2527.2,3.95693]
[1724883683450,3.95626,2527.7,2527.3,0.06005845]
[1724883683671,3.95626,2527.7,2527.2,3.95693]
[1724883683985,7.91257,2527.7,2527.3,0.06005845]
[1724883684182,3.95626,2527.7,2527.2,3.95685]
[1724883684344,10.91194,2527.9,2527.2,5.05891759]
[1724883684676,3.95601,2527.8,2527.4,0.05984187]
[1724883684877,3.95601,2527.8,2527.3,4.01683845]
[1724883685082,3.95601,2527.8,2527.5,0.05962531]
[1724883685083,3.95606,2527.8,2527.5,0.05962531]